bitfinex/quotes_ETHUSD_20250107
["timestamp","ask_amount","ask_price","bid_price","bid_amount"]
[1736290970446,0.7537,3385.0,3383.5,1.42461626]
[1736290970601,2.95475,3384.4,3383.5,1.42461626]
[1736290971014,0.03560857,3384.3,3383.6,0.0075]
[1736290971220,2.95438,3384.8,3383.6,0.0075]
[1736290971221,5.95474,3384.4,3383.6,0.5575]
[1736290971545,0.03560857,3384.3,3383.6,0.5575]
[1736290972328,2.95456,3384.6,3383.6,0.5575]
[1736290972530,0.03560857,3384.2,3383.8,0.0075]
[1736290972737,2.95396,3385.3,3384.4,0.0075]
[1736290973048,5.09050233,3385.2,3384.4,0.0075]
[1736290973225,3.03560857,3385.1,3384.4,0.0075]
[1736290974225,0.03560857,3385.1,3384.4,0.0075]
[1736290974430,1.23415706,3385.5,3384.6,0.0075]
[1736290974611,0.03560857,3385.4,3385.3,0.5575]
[1736290974947,0.223,3385.8,3385.3,0.5575]
[1736290975155,0.03560857,3385.4,3385.3,0.5575]
[1736290975323,0.44571571,3385.8,3385.3,0.5575]
[1736290975848,0.03560857,3385.7,3385.3,0.5575]
[1736290976050,0.44571571,3385.8,3385.3,0.5575]
[1736290976252,0.03560857,3385.7,3385.3,0.5575]
[1736290976457,0.64530387,3385.7,3385.3,0.0075]
[1736290976612,3.0,3385.4,3384.7,0.8228]
[1736290977135,0.03560857,3385.3,3384.8,0.0075]
[1736290977337,0.03560857,3385.3,3384.8,0.5575]
[1736290977804,0.223,3385.9,3385.0,0.0075]
[1736290978011,0.03560857,3385.8,3385.2,0.0075]
[1736290978511,0.03560857,3385.8,3385.0,0.0075]
[1736290978723,0.03560857,3385.8,3385.0,0.5575]
[1736290979140,0.03560857,3385.8,3385.0,3.51168]
[1736290979340,2.98913857,3385.8,3384.8,2.95429]
[1736290979546,3.31035243,3385.8,3384.8,2.95429]
[1736290979762,3.31035243,3385.8,3384.9,0.5575]
[1736290980366,0.35682243,3385.8,3384.9,2.95421]
[1736290980569,0.03560857,3385.8,3385.0,0.0075]
[1736290981363,0.03560857,3385.8,3385.2,0.5575]
[1736290981780,0.03560857,3385.8,3384.8,0.02953991]
[1736290981781,0.223,3386.0,3384.7,0.8228]
[1736290982062,2.95424,3385.0,3384.3,0.809]
[1736290982272,0.765,3385.1,3383.8,3.78398]
[1736290982273,0.0359601,3384.9,3383.8,3.78398]
[1736290982447,3.0,3384.8,3383.5,1.20510017]
[1736290982643,3.0,3384.6,3383.5,1.20510017]
[1736290982959,0.0359601,3384.5,3384.0,2.95506]
[1736290983275,0.223,3384.6,3384.1,0.8288]
[1736290983761,3.0,3384.9,3384.2,0.5575]
[1736290984083,0.223,3385.1,3384.3,0.5575]
[1736290984376,0.0359601,3384.8,3384.3,0.5575]
[1736290984540,0.223,3385.1,3384.3,0.0075]
[1736290984876,3.17695,3385.3,3384.3,0.0075]
[1736290985064,0.0359601,3385.2,3384.5,0.0075]
[1736290985228,2.9900101,3385.2,3384.5,0.0075]
[1736290986528,2.9900101,3385.2,3384.3,0.0075]
[1736290986735,2.95421,3385.0,3384.3,0.0075]
[1736290987228,0.0359601,3384.9,3384.3,0.0075]
[1736290987434,0.33497711,3384.9,3384.3,0.0075]
[1736290991099,0.7623,3384.8,3383.3,2.95566]
[1736290991241,2.9549,3384.3,3383.3,2.95566]
[1736290991440,2.95492,3384.2,3383.2,0.5575]
[1736290991652,0.223,3384.3,3383.2,0.5575]
[1736290991877,2.955,3384.1,3383.2,3.51327]
[1736290992050,4.03863599,3384.1,3383.2,2.95577]
[1736290992256,0.0353599,3384.0,3382.9,0.8301]
[1736290992586,2.95528,3383.8,3382.9,3.7861]
[1736290992943,0.0353599,3383.7,3383.0,0.5575]
[1736290993145,0.0353599,3383.7,3383.0,2.95592]
[1736290993545,3.0,3383.9,3383.0,2.95592]
[1736290993775,0.0353599,3383.6,3383.1,0.55]
[1736290993957,0.223,3384.3,3383.6,0.5575]
[1736290994172,4.18861706,3384.8,3383.6,0.5575]
[1736290994173,0.7623,3384.5,3383.8,0.5575]
[1736290994374,0.0353599,3384.2,3384.1,0.5575]
[1736290994686,0.223,3384.7,3384.2,0.0075]
[1736290994907,0.03452791,3384.6,3384.2,0.0075]
[1736290995802,0.03452791,3384.6,3384.2,0.5575]
[1736290996503,0.03452791,3384.6,3384.3,0.5575]
[1736290996861,0.223,3384.7,3384.3,0.5575]
[1736290997058,0.03400279,3384.6,3384.3,0.5575]
[1736290998682,0.03400279,3384.6,3384.0,0.0075]
[1736290999016,2.95506,3384.1,3383.0,2.95588]
[1736290999164,0.295506,3384.0,3383.1,2.95579]
[1736290999368,0.32923422,3384.0,3382.8,3.825]
[1736290999579,0.32923422,3384.0,3383.1,0.5575]
[1736290999913,0.03372822,3384.0,3383.7,0.0075]
[1736291000119,0.03372822,3384.0,3383.9,3.51267]
[1736291000318,0.223,3384.7,3384.2,0.0075]
[1736291000814,0.03198704,3384.6,3384.2,0.5575]
[1736291001523,0.03198704,3384.6,3383.8,2.95517]
[1736291001689,0.03198704,3384.6,3382.8,5.95609]
[1736291001690,0.03198704,3384.6,3383.9,2.9551]
[1736291002443,0.03198704,3384.6,3384.0,0.5575]
[1736291003828,0.03198704,3384.6,3384.1,0.5575]
[1736291004351,0.03198704,3384.6,3384.3,0.0075]
[1736291004554,0.03198704,3384.6,3384.5,0.0075]
[1736291004773,2.05825706,3385.4,3384.5,0.5870461]
[1736291004939,1.23415706,3385.3,3385.1,0.5575]
[1736291005141,1.26628146,3385.3,3385.1,0.0075]
[1736291005647,1.26628146,3385.3,3384.7,0.5575]
[1736291005853,1.26628146,3385.3,3384.8,0.5575]
[1736291006017,1.82486458,3385.3,3384.8,0.5575]
[1736291006220,1.82486458,3385.3,3384.8,0.0075]
[1736291006459,4.77888458,3385.3,3384.5,0.0075]
[1736291006864,3.78245,3385.2,3384.5,0.5575]
[1736291007164,2.95428,3385.0,3384.2,0.5575]
[1736291007319,3.69161875,3385.0,3384.2,0.0075]
[1736291007519,3.69161875,3385.0,3384.1,0.55]
[1736291007520,0.0321244,3384.9,3384.1,0.55]
[1736291007831,0.0321244,3384.9,3384.2,0.0075]
[1736291008421,0.0321244,3384.9,3384.1,0.5575]
[1736291008665,2.9864344,3384.9,3384.1,0.5575]
[1736291008866,3.56506742,3384.9,3384.1,0.5575]
[1736291009071,0.0321244,3384.9,3384.4,2.95471]
[1736291009270,0.0321244,3384.9,3384.5,0.0075]
[1736291009466,2.06255706,3385.2,3384.7,0.0075]
[1736291009665,0.0321244,3384.8,3384.7,0.0075]
[1736291009971,1.23415706,3385.1,3384.7,0.0075]
[1736291010137,0.0321244,3384.8,3384.5,0.0075]
[1736291010336,2.54592405,3385.1,3384.5,0.0075]
[1736291010540,0.0321244,3384.7,3383.6,0.8296]
[1736291010853,3.7853844,3384.6,3383.6,3.78495]
[1736291011055,3.7853844,3384.6,3383.7,0.0075]
[1736291011254,1.20936284,3384.6,3383.9,2.95514]
[1736291011421,1.20936284,3384.6,3383.9,0.5575]
[1736291011752,2.95464,3384.5,3383.7,1.20510017]
[1736291012147,0.0327596,3384.4,3383.6,0.8296]
[1736291012321,2.9874896,3384.4,3383.4,2.95556]
[1736291012522,0.0327596,3384.4,3383.3,1.20510017]
[1736291012733,0.8112,3383.7,3383.3,1.20510017]
[1736291013025,2.95558,3383.5,3383.3,1.20510017]
[1736291013366,0.03225311,3383.4,3383.0,1.20510017]
[1736291013524,0.8112,3383.3,3383.0,1.20510017]
[1736291014035,0.03225311,3383.2,3383.0,1.20510017]
[1736291014240,0.8112,3383.3,3383.0,1.20510017]
[1736291014558,0.03225311,3383.2,3383.1,0.5575]
[1736291015036,0.03225311,3383.2,3382.9,0.5575]
[1736291015256,0.223,3383.6,3382.9,0.5575]
[1736291015471,0.03225311,3383.5,3382.9,0.5575]
[1736291015673,0.03225311,3383.5,3383.1,0.0075]
[1736291015825,0.03225311,3383.5,3383.4,2.9556]
[1736291016370,0.03172926,3383.5,3383.4,3.5131]
[1736291016719,1.23415706,3384.0,3383.5,0.5575]
[1736291016918,0.38536927,3383.9,3383.5,0.0075]
[1736291017127,1.23415706,3384.0,3383.5,0.0075]
[1736291017361,1.23415706,3384.0,3383.2,0.55]
[1736291017362,1.23415706,3384.0,3383.3,0.0075]
[1736291017879,0.7683,3384.1,3383.3,0.0075]
[1736291018032,0.7775,3383.4,3382.3,1.20510017]
[1736291018229,0.03190962,3383.3,3382.6,0.1701137]
[1736291018425,0.38094096,3383.2,3382.6,0.1701137]
[1736291019052,0.03190962,3383.1,3382.6,0.1701137]
[1736291019376,0.03190962,3383.1,3382.8,2.95613]
[1736291019571,0.03190962,3383.1,3383.0,0.5575]
[1736291019738,1.23415706,3383.6,3383.0,0.5575]
[1736291020139,0.03030379,3383.5,3382.9,0.8085]
[1736291020343,0.03030379,3383.5,3383.4,3.5131]
[1736291020555,0.03030379,3383.5,3383.4,0.5575]
[1736291020974,0.03030379,3383.5,3383.4,3.5131]
[1736291021470,0.03030379,3383.5,3383.4,4.3216]
[1736291021641,1.23415706,3384.2,3383.4,4.3216]
[1736291021975,0.42054639,3384.1,3383.5,0.5575]
[1736291022141,0.7977,3384.0,3382.6,0.1701137]
[1736291022347,0.7977,3384.0,3383.4,2.95557]
[1736291022561,0.0307676,3383.9,3383.5,3.513]
[1736291022770,0.0307676,3383.9,3383.5,0.5575]
[1736291023067,0.7692,3384.4,3383.9,0.5575]
[1736291023272,0.0307676,3384.3,3383.9,0.5575]
[1736291023484,3.0,3384.6,3383.7,0.5575]
[1736291023657,0.0307676,3384.5,3383.7,0.5575]
[1736291023971,0.0307676,3384.5,3383.7,0.0075]
[1736291024270,0.0307676,3384.5,3383.8,0.5575]
[1736291024973,0.0307676,3384.5,3383.5,0.5575]
[1736291025174,0.0307676,3384.5,3384.0,0.5575]
[1736291025331,0.0307676,3384.5,3384.0,0.0075]
[1736291025537,2.95482,3384.3,3383.4,0.7873]
[1736291025937,3.35303676,3384.5,3383.5,0.5575]
[1736291026175,0.0307676,3384.2,3383.5,3.51295]
[1736291026474,3.35303676,3384.5,3383.5,0.5575]
[1736291026475,0.0307676,3384.1,3383.5,0.5575]
[1736291026676,2.95476,3384.4,3383.5,0.5575]
[1736291026832,2.95512,3384.0,3383.1,3.71346]
[1736291027025,2.95512,3384.0,3383.2,0.5575]
[1736291027234,0.0307676,3383.9,3383.2,0.5575]
[1736291027744,0.0307676,3383.9,3383.2,0.55]
[1736291027944,0.0307676,3383.9,3383.6,0.5575]
[1736291028151,0.8268,3384.2,3383.6,0.5575]
[1736291028357,0.03092217,3383.8,3383.6,0.5575]
[1736291028607,0.8268,3384.2,3383.6,0.5575]
[1736291028743,0.03092217,3383.7,3383.6,0.5575]
[1736291028953,2.95473,3384.4,3383.3,3.51317]
[1736291029151,0.53734538,3384.3,3383.3,3.51317]
[1736291029351,0.56820744,3384.3,3383.5,0.0075]
[1736291029747,2.95501,3384.1,3383.5,0.0075]
[1736291029946,0.03086206,3384.3,3382.8,1.20510017]
[1736291029947,0.816,3383.8,3382.8,1.20510017]
[1736291030161,0.816,3383.1,3382.7,1.20510017]
[1736291030777,0.03121425,3383.0,3382.7,1.20510017]
[1736291031143,2.98724425,3383.0,3382.7,1.20510017]
[1736291031382,3.36756867,3383.0,3382.7,1.20510017]
[1736291031592,0.03121425,3383.0,3382.8,0.55]
[1736291032082,1.23415706,3383.4,3383.1,0.0075]
[1736291032391,1.23415706,3383.4,3383.3,3.51319]
[1736291032747,1.23415706,3383.9,3383.4,0.5575]
[1736291033264,0.02922596,3383.8,3383.4,0.5575]
[1736291033640,0.816,3383.7,3382.7,0.8142]
[1736291033843,0.0298532,3383.6,3382.8,0.5575]
[1736291034175,2.9852932,3383.6,3382.8,0.5575]
[1736291034386,2.95561,3383.4,3382.6,0.1701137]
[1736291034536,0.29854632,3383.3,3382.6,0.1701137]
[1736291034742,0.02976729,3383.3,3382.7,0.5575]
[1736291035281,0.02976729,3383.3,3382.7,0.0075]
[1736291035588,0.02976729,3383.3,3382.7,0.5575]
[1736291036183,2.98546729,3383.3,3382.7,0.5575]
[1736291036484,2.95614,3382.8,3382.6,0.1701137]
[1736291036694,6.80839612,3382.7,3382.6,0.1701137]
[1736291039384,6.80839612,3382.7,3382.6,0.7201137]
[1736291039385,3.85218612,3382.7,3382.6,0.7201137]
[1736291039570,0.85218612,3382.7,3382.6,0.7201137]
[1736291039775,0.7854,3382.3,3380.8,3.72946]
[1736291039997,2.95683,3382.0,3381.1,0.0075]
[1736291040307,0.221,3382.0,3381.2,2.9575]
[1736291040513,0.02924315,3381.9,3381.3,0.0075]
[1736291040911,0.02924315,3381.9,3381.0,0.0075]
[1736291041068,0.7854,3382.3,3381.2,0.0075]
[1736291041274,2.957,3381.8,3381.2,0.0075]
[1736291041623,0.2957,3381.7,3380.9,0.0075]
[1736291041782,1.0019,3381.6,3380.3,0.8311]
[1736291042121,3.73869,3380.9,3380.2,0.00295]
[1736291042275,0.02645749,3380.8,3380.2,0.00295]
[1736291043198,2.95807,3380.6,3380.2,0.00295]
[1736291043913,0.221,3380.6,3380.2,0.00295]
[1736291044120,2.95831,3380.3,3380.2,0.00295]
[1736291044620,0.7585,3380.5,3380.2,0.00295]
[1736291044918,3.33447875,3380.8,3380.2,0.00295]
[1736291044919,0.221,3380.7,3380.2,0.00295]
[1736291045286,3.221,3380.7,3380.2,0.00295]
[1736291045591,0.73139188,3380.6,3380.2,0.00295]
[1736291045814,0.7877,3380.5,3380.2,0.00295]
[1736291046129,2.95831,3380.3,3380.2,0.00295]
[1736291047488,4.25295247,3380.8,3380.2,0.00295]
[1736291047489,0.37651875,3380.8,3380.2,0.00295]
[1736291047687,1.0162,3381.3,3380.6,2.95805]
[1736291047892,2.06365706,3381.8,3380.9,0.0075]
[1736291048128,1.23415706,3381.8,3381.1,0.0075]
[1736291048536,0.04839789,3381.7,3381.1,0.0075]
[1736291048712,1.23415706,3381.8,3381.1,0.0075]
[1736291048914,1.17375368,3381.8,3381.1,0.0075]
[1736291049193,0.8194,3381.6,3380.1,2.95849]
[1736291049494,0.8194,3382.3,3381.5,0.8014]
[1736291049699,0.8194,3382.3,3381.6,0.0075]
[1736291050453,3.77598,3382.3,3381.6,0.0075]
[1736291050753,0.677598,3382.2,3381.3,2.95742]
[1736291050914,0.227,3382.5,3381.9,0.0075]
[1736291051238,0.227,3383.0,3382.0,3.76572]
[1736291051438,0.02610481,3382.4,3382.0,3.76572]
[1736291051751,0.02647469,3382.3,3382.0,0.8089]
[1736291052093,3.18304,3382.9,3382.0,0.8089]
[1736291052302,0.42673589,3382.8,3382.0,0.8089]
[1736291052695,0.42673589,3382.8,3382.0,0.5589]
[1736291052896,0.42673589,3382.8,3380.9,3.227]
[1736291053091,0.42673589,3382.8,3381.1,0.5575]
[1736291053342,2.95624,3382.7,3381.7,0.5575]
[1736291053558,0.38779047,3382.6,3381.7,2.96457]
[1736291054264,0.02679288,3382.6,3382.1,0.0075]
[1736291054401,0.02679288,3382.6,3381.2,0.5575]
[1736291054597,0.7985,3383.5,3382.8,0.0075]
[1736291054797,0.227,3383.8,3382.9,0.0075]
[1736291055051,0.02746375,3383.4,3383.1,0.0075]
[1736291055343,0.02746375,3383.3,3382.6,2.9563]
[1736291055497,0.227,3383.6,3381.6,3.20718]
[1736291055498,2.95552,3383.5,3382.7,0.0075]
[1736291055704,0.3459307,3383.4,3382.7,0.0075]
[1736291056140,0.3459307,3383.4,3382.6,0.5575]
[1736291056300,0.0276787,3383.4,3383.0,0.0075]
[1736291056524,0.227,3383.8,3383.0,0.0075]
[1736291056745,0.0276959,3383.7,3383.0,2.99300694]
[1736291057047,0.0276959,3383.7,3383.0,2.96345]
[1736291057400,0.0276959,3383.7,3383.4,0.7923]
[1736291057630,0.7985,3384.4,3383.4,0.7923]
[1736291057631,1.0255,3384.4,3383.4,0.7923]
[1736291057811,5.95484,3384.3,3383.4,0.7923]
[1736291058020,0.698034,3384.2,3383.4,0.7923]
[1736291058250,0.698034,3384.2,3383.2,0.5575]
[1736291058568,0.02868452,3384.1,3383.2,0.5575]
[1736291058764,0.02868452,3384.1,3381.8,0.25]
[1736291058960,0.8042,3383.9,3382.2,0.7956]
[1736291059130,2.9556,3383.5,3382.2,3.75217]
[1736291059317,3.21148218,3383.4,3382.3,3.5575]
[1736291059517,3.21148218,3383.4,3382.5,0.0075]
[1736291059719,0.32114822,3383.3,3382.5,0.0075]
[1736291059927,0.02887359,3383.2,3382.5,0.0075]
[1736291060340,0.02887359,3383.2,3382.5,2.96388]
[1736291060729,0.227,3383.4,3382.5,2.96388]
[1736291060931,0.02887359,3383.3,3382.5,2.96388]
[1736291061716,0.35001295,3383.3,3382.5,2.96388]
[1736291062589,0.7525,3383.2,3382.3,0.55]
[1736291062754,2.95605,3382.9,3381.8,0.7647]
[1736291062951,3.70835,3383.2,3382.2,2.95663]
[1736291063194,0.45420453,3383.1,3382.3,0.0075]
[1736291063542,2.98442559,3383.1,3382.3,0.0075]
[1736291063796,2.95639,3382.5,3382.4,35.0]
[1736291064087,2.95639,3382.5,3381.2,2.95751]
[1736291064088,2.95665,3382.3,3381.2,2.95751]
[1736291064387,2.95665,3382.3,3381.5,35.0]
[1736291064684,0.02838367,3382.2,3381.6,0.0075]
[1736291064889,0.393615,3382.2,3381.6,0.0075]
[1736291065038,2.95648,3382.4,3381.5,35.0]
[1736291065385,3.0,3382.3,3381.5,35.0]
[1736291065573,0.7525,3381.9,3381.5,35.0]
[1736291065777,1.123433,3381.9,3381.6,0.0075]
[1736291066089,0.02672415,3381.8,3381.6,0.0075]
[1736291066491,0.02672415,3381.8,3381.6,0.5575]
[1736291066804,0.7525,3382.4,3380.9,0.7647]
[1736291066941,3.33183,3382.3,3381.0,0.02957297]
[1736291067143,0.02672415,3382.2,3381.8,0.0075]
[1736291067457,0.7525,3382.4,3381.8,2.9645]
[1736291067677,6.83222372,3383.2,3381.8,2.9645]
[1736291067678,0.227,3382.7,3382.0,0.0075]
[1736291067991,0.7525,3383.1,3382.6,0.0075]
[1736291068195,0.25347964,3383.0,3382.6,0.0075]
[1736291068342,0.7525,3383.1,3382.6,0.0075]
[1736291068541,0.7525,3383.1,3382.3,0.5575]
[1736291068994,0.7525,3383.1,3382.8,0.0075]
[1736291069890,1.55381522,3384.0,3383.0,0.0075]
[1736291070095,0.56572489,3383.9,3383.0,0.0075]
[1736291070239,0.56572489,3383.9,3383.0,2.96342]
[1736291070445,0.56572489,3383.9,3383.2,0.0075]
[1736291070778,0.227,3384.2,3383.7,0.0075]
[1736291071292,3.7935,3384.4,3383.9,0.0075]
[1736291071661,0.7935,3384.4,3383.9,0.0075]
[1736291071872,3.0,3384.2,3383.5,0.0075]
[1736291072072,3.397514,3384.3,3382.8,0.7662]
[1736291072271,3.0,3383.9,3382.9,35.0]
[1736291072488,2.95556,3383.5,3382.9,35.0]
[1736291072696,3.73511,3383.3,3382.4,0.7662]
[1736291073202,0.7794,3383.3,3382.7,0.0075]
[1736291073412,0.673439,3383.8,3382.9,0.0075]
[1736291073753,3.7794,3383.9,3383.1,0.0075]
[1736291073910,0.696151,3383.8,3383.1,0.0075]
[1736291074078,0.72540276,3383.8,3383.1,0.0075]
[1736291074276,2.95543,3383.6,3382.5,37.95633]
[1736291074475,2.95545,3383.6,3382.6,2.95627]
[1736291074701,0.02926895,3383.5,3382.7,0.5575]
[1736291075007,0.39735595,3383.5,3382.7,0.5575]
[1736291076608,0.757,3383.4,3382.5,35.0]
[1736291076811,3.0,3382.9,3382.5,35.0]
[1736291076977,2.95629,3382.7,3381.7,2.95708]
[1736291077177,2.95629,3382.7,3381.8,0.5575]
[1736291077541,2.95665,3382.2,3382.1,35.0]
[1736291078045,2.98588457,3382.2,3382.1,35.0]
[1736291078398,2.98588457,3382.2,3382.1,35.0075]
[1736291078598,2.98588457,3382.2,3381.2,1.22707174]
[1736291078599,2.95702,3381.8,3381.2,1.22707174]
[1736291078819,2.95702,3381.8,3381.1,1.84060762]
[1736291078820,2.95702,3381.8,3381.1,0.02957271]
[1736291079114,0.02787639,3381.7,3381.3,35.0]
[1736291079327,3.624365,3382.2,3381.4,0.0370703]
[1736291079527,0.02787639,3382.1,3381.4,2.9943903]
[1736291079847,0.02787639,3382.1,3381.6,0.0075]
[1736291080000,0.02787639,3382.1,3381.6,0.8255]
[1736291080348,0.23,3382.2,3381.6,0.8255]
[1736291080644,0.23,3382.2,3380.3,1.47707174]
[1736291080645,2.98448879,3382.1,3381.7,35.0]
[1736291080858,2.95692,3381.9,3381.7,35.0]
[1736291081013,2.95676,3382.1,3381.8,0.0075]
[1736291081406,6.581007,3382.2,3381.8,0.0075]
[1736291081607,0.624357,3382.2,3381.8,0.0075]
[1736291081849,3.581007,3382.2,3381.8,0.0075]
[1736291082141,0.6581007,3382.1,3381.8,0.0075]
[1736291082946,0.624357,3382.2,3381.8,0.0075]
[1736291083944,0.624357,3382.2,3381.3,0.5575]
[1736291084142,0.624357,3382.2,3381.5,0.0075]
[1736291084449,0.624357,3382.2,3382.0,0.0075]
[1736291085005,0.624357,3382.2,3381.4,0.0075]
[1736291085347,2.95697,3381.9,3381.6,0.0075]
[1736291085557,0.78055856,3381.9,3381.6,0.0075]
[1736291085853,0.7971,3382.1,3381.6,0.0075]
[1736291086056,0.7971,3382.5,3381.5,0.5575]
[1736291086252,0.7971,3382.9,3382.5,0.0075]
[1736291086443,0.84095612,3382.8,3382.5,0.0075]
[1736291087057,2.95639,3382.5,3382.4,35.0]
[1736291087226,2.95639,3382.5,3381.4,3.76562]
[1736291087428,2.95639,3382.5,3381.5,0.0075]
[1736291087651,3.42715863,3382.6,3382.0,0.0075]
[1736291087815,0.7971,3382.9,3382.0,3.5438167]
[1736291088015,1.53811586,3382.9,3382.0,0.5575]
[1736291088237,0.02783339,3382.8,3381.9,0.5575]
[1736291088801,0.02783339,3382.8,3382.2,0.0075]
[1736291091831,0.02783339,3382.8,3382.1,0.5575]
[1736291092247,0.02783339,3382.8,3382.4,0.0075]
[1736291092451,0.40592973,3382.8,3382.4,0.0075]
[1736291092816,0.40592973,3382.8,3381.5,0.5575]
[1736291092817,2.95617,3382.8,3381.5,0.5575]
[1736291093056,0.02749812,3382.7,3381.6,0.5575]
[1736291093208,0.02749812,3382.7,3381.6,35.5575]
[1736291093558,0.02749812,3382.7,3381.9,0.0075]
[1736291093764,0.02749812,3382.7,3381.8,2.95693]
[1736291093765,0.7971,3382.9,3381.4,0.8083]
[1736291093908,0.40279812,3382.8,3382.0,2.95675]
[1736291094114,0.02749812,3382.8,3382.1,35.58706354]
[1736291094313,0.02749812,3382.8,3382.1,35.5575]
[1736291096767,0.02749812,3382.8,3382.3,0.5575]
[1736291096937,1.23291838,3383.2,3382.5,0.5575]
[1736291097135,0.02692511,3383.1,3382.7,0.0075]
[1736291097441,0.02692511,3383.1,3383.0,3.51345]
[1736291097864,1.23291838,3383.2,3383.1,3.51336]
[1736291098742,2.95473,3384.4,3383.1,3.51336]
[1736291098943,1.57522444,3384.3,3383.5,0.0075]
[1736291099139,4.53007444,3384.3,3383.5,0.0075]
[1736291099574,4.53007444,3384.3,3383.7,0.0075]
[1736291099888,1.57522444,3384.3,3383.7,0.0075]
[1736291100096,0.7652,3384.0,3382.9,2.95597]
[1736291100307,2.9553,3383.8,3382.9,0.5575]
[1736291100455,2.9553,3383.8,3383.1,0.0075]
[1736291100804,3.02673549,3383.7,3382.6,2.95628]
[1736291101002,2.95552,3383.5,3382.6,2.95628]
[1736291101296,0.59822555,3383.4,3382.8,0.0075]
[1736291101658,0.02673549,3383.3,3382.8,0.0075]
[1736291102087,0.02673549,3383.3,3383.0,0.0075]
[1736291102403,0.02673549,3383.3,3382.4,0.7585]
[1736291102404,3.81233549,3383.3,3382.0,0.8204]
[1736291102615,2.95589,3383.1,3382.2,0.55]
[1736291102784,0.67682255,3383.0,3382.4,0.5575]
[1736291102989,0.67682255,3383.0,3382.3,35.0]
[1736291102990,1.0156,3383.7,3382.8,2.96361]
[1736291103317,5.95543,3383.6,3382.8,0.0075]
[1736291103612,5.98216549,3383.6,3382.8,0.0075]
[1736291103867,0.02673549,3383.6,3383.0,0.0075]
[1736291104028,2.95586,3383.1,3383.0,0.0075]
[1736291104319,0.7856,3383.1,3381.8,2.05115206]
[1736291104521,0.81235269,3383.1,3382.2,2.95658]
[1736291104702,0.81235269,3383.1,3382.4,35.0]
[1736291104906,0.81235269,3383.1,3382.5,3.51387]
[1736291105128,0.81235269,3383.1,3382.5,0.0075]
[1736291105424,1.50512113,3383.1,3382.5,0.0075]
[1736291105920,0.02675269,3383.0,3382.5,0.0075]
[1736291106916,0.02675269,3383.0,3382.5,3.54336181]
[1736291107888,0.02675269,3383.0,3382.7,0.5575]
[1736291108223,0.7579,3383.4,3382.9,0.0075]
[1736291108528,0.7579,3383.4,3383.2,0.0075]
[1736291108726,0.94723586,3383.9,3383.2,0.0075]
[1736291108963,0.71923586,3383.9,3383.2,0.0075]
[1736291109130,0.8164,3384.1,3383.5,0.0075]
[1736291109476,3.08792144,3384.5,3384.0,0.0075]
[1736291109752,0.8164,3384.7,3384.2,0.0075]
[1736291110053,1.0444,3385.2,3384.4,2.95471]
[1736291110201,0.44715586,3385.1,3384.5,0.0075]
[1736291110398,0.44715586,3385.1,3384.8,2.95436]
[1736291110633,6.38069863,3385.8,3385.1,2.95411]
[1736291110634,0.8164,3385.8,3385.1,2.95411]
[1736291110813,0.8164,3385.8,3385.3,0.0075]
[1736291111122,1.23434699,3385.4,3385.3,0.0075]
[1736291111468,1.23434699,3385.4,3384.5,0.7697]
[1736291111604,0.30858675,3385.3,3384.6,0.0075]
[1736291111805,0.30858675,3385.3,3384.6,3.50453]
[1736291112147,0.30858675,3385.3,3384.6,2.95453]
[1736291112347,0.30858675,3385.3,3384.6,0.0075]
[1736291112845,2.95421,3385.0,3384.1,0.827]
[1736291113208,2.95421,3385.0,3384.2,0.0075]
[1736291113642,0.7584,3385.2,3384.2,0.0075]
[1736291113946,2.95428,3385.0,3384.2,0.0075]
[1736291114331,3.0,3384.8,3383.7,0.827]
[1736291114521,0.7584,3384.5,3383.7,0.827]
[1736291114721,0.7584,3384.5,3383.8,2.96275]
[1736291114939,0.7584,3384.5,3383.8,2.99229954]
[1736291115302,0.3,3384.7,3383.8,2.99229954]
[1736291115303,0.3,3384.7,3384.1,0.0075]
[1736291115502,0.3,3384.7,3384.1,2.96246]
[1736291115708,0.7584,3384.9,3384.1,2.96246]
[1736291115932,3.7584,3384.9,3384.0,0.5575]
[1736291116148,0.7584,3384.9,3383.4,0.7933]
[1736291116317,3.8124,3384.5,3382.7,0.7933]
[1736291116622,0.8124,3383.8,3382.8,2.95611]
[1736291116820,0.376759,3383.7,3382.9,2.95603]
[1736291117015,0.376759,3383.7,3382.7,0.7933]
[1736291117249,2.95518,3383.9,3382.8,3.51355]
[1736291117446,3.8124,3384.1,3382.7,0.7933]
[1736291117604,2.95586,3383.2,3382.3,0.7961]
[1736291118419,0.8109,3383.4,3382.3,0.7961]
[1736291118625,2.95592,3383.1,3382.4,0.0075]
[1736291118818,2.98438865,3383.3,3382.4,0.03706126]
[1736291119050,0.028309,3383.0,3382.4,0.03706126]
[1736291119334,0.7561,3383.8,3382.8,3.51363]
[1736291119560,0.028309,3383.7,3383.2,0.0075]
[1736291119774,2.95511,3384.0,3383.2,0.0075]
[1736291119981,0.02838638,3383.9,3383.1,0.0075]
[1736291120130,0.02838638,3383.9,3383.1,2.96334]
[1736291120336,2.95508,3384.0,3383.1,2.96334]
[1736291120532,0.85919742,3383.9,3382.8,0.0075]
[1736291120737,0.85919742,3383.9,3382.7,0.7603]
[1736291120982,0.85919742,3383.9,3382.8,0.0075]
[1736291121185,4.18865863,3383.8,3382.8,0.0075]
[1736291121355,2.95562,3383.4,3382.8,0.0075]
[1736291121550,0.295562,3383.3,3382.5,0.02955992]
[1736291121753,0.02851533,3383.2,3382.5,0.02955992]
[1736291121941,0.817,3383.1,3382.7,0.0075]
[1736291122141,0.02848954,3383.0,3382.7,0.0075]
[1736291123180,0.02848954,3383.0,3382.0,0.7876]
[1736291123667,0.44259469,3383.0,3382.3,0.0075]
[1736291123836,0.02848954,3383.0,3382.3,0.5575]
[1736291124034,0.02848954,3383.0,3382.5,2.96389]
[1736291124270,0.02848954,3383.0,3382.7,0.0075]